[Event "*** SCC Grand Prix: Titled Tuesday Blitz"]
[Site "Chess.com"]
[Date "2020.06.09"]
[Round "5"]
[White "Enriquack"]
[Black "Fusikk"]
[Result "0-1"]
[WhiteElo "2408"]
[BlackElo "2577"]
[TimeControl "180+1"]
[EndTime "9:57:07 PDT"]
[Termination "Fusikk won by checkmate"]

1. e4 {[%clk 0:03:00.9]} 1... c6 {[%clk 0:02:58.8]} 2. d4 {[%clk 0:03:00.8]}
2... d5 {[%clk 0:02:59.3]} 3. e5 {[%clk 0:03:00.1]} 3... Bf5 {[%clk 0:02:58.4]}
4. Nf3 {[%clk 0:02:59.5]} 4... e6 {[%clk 0:02:58.2]} 5. Be2 {[%clk 0:02:59.6]}
5... c5 {[%clk 0:02:58]} 6. O-O {[%clk 0:02:58.8]} 6... Nc6 {[%clk 0:02:56.9]}
7. Bb5 {[%clk 0:02:56.6]} 7... Qb6 {[%clk 0:02:49.5]} 8. c4 {[%clk 0:02:22.6]}
8... dxc4 {[%clk 0:02:33.7]} 9. Qa4 {[%clk 0:02:20.2]} 9... Rc8 {[%clk
0:02:17.4]} 10. Be3 {[%clk 0:01:33.5]} 10... a6 {[%clk 0:02:12.9]} 11. Bxc4
{[%clk 0:01:33]} 11... Bg4 {[%clk 0:01:45.4]} 12. Nbd2 {[%clk 0:01:27.3]} 12...
cxd4 {[%clk 0:01:38.6]} 13. Nxd4 {[%clk 0:01:20]} 13... Qb4 {[%clk 0:01:30.5]}
14. Bb3 {[%clk 0:00:49.2]} 14... Ne7 {[%clk 0:00:49.4]} 15. Rac1 {[%clk
0:00:39.6]} 15... Qxa4 {[%clk 0:00:35]} 16. Bxa4 {[%clk 0:00:38.8]} 16... b5
{[%clk 0:00:32.9]} 17. Nxb5 {[%clk 0:00:35.8]} 17... axb5 {[%clk 0:00:28]} 18.
Bxb5 {[%clk 0:00:36.7]} 18... f6 {[%clk 0:00:19.5]} 19. Nb3 {[%clk 0:00:26.8]}
19... Kf7 {[%clk 0:00:18.2]} 20. exf6 {[%clk 0:00:20.1]} 20... gxf6 {[%clk
0:00:17.7]} 21. Na5 {[%clk 0:00:20.5]} 21... Nxa5 {[%clk 0:00:16.4]} 22. Rce1
{[%clk 0:00:18.9]} 22... Nd5 {[%clk 0:00:15.1]} 23. Bd4 {[%clk 0:00:18.8]} 23...
Bc5 {[%clk 0:00:14.3]} 24. Bxc5 {[%clk 0:00:14.3]} 24... Rxc5 {[%clk 0:00:15.2]}
25. Bd3 {[%clk 0:00:14.8]} 25... Nc6 {[%clk 0:00:12.3]} 26. f3 {[%clk
0:00:14.9]} 26... Bh5 {[%clk 0:00:11.6]} 27. a3 {[%clk 0:00:14]} 27... Ne5
{[%clk 0:00:11.6]} 28. Be2 {[%clk 0:00:14.2]} 28... Bg6 {[%clk 0:00:11.4]} 29.
b4 {[%clk 0:00:15.1]} 29... Rc2 {[%clk 0:00:10.4]} 30. f4 {[%clk 0:00:15.4]}
30... Nd3 {[%clk 0:00:09.3]} 31. Bxd3 {[%clk 0:00:13.9]} 31... Bxd3 {[%clk
0:00:10.2]} 32. Rf3 {[%clk 0:00:14.6]} 32... Bf5 {[%clk 0:00:06.8]} 33. Rb3
{[%clk 0:00:14.8]} 33... Ra8 {[%clk 0:00:06.6]} 34. b5 {[%clk 0:00:14.6]} 34...
Nb6 {[%clk 0:00:06.9]} 35. h3 {[%clk 0:00:13.4]} 35... Rd8 {[%clk 0:00:06.7]}
36. g4 {[%clk 0:00:14.3]} 36... Bg6 {[%clk 0:00:05.6]} 37. Rf3 {[%clk
0:00:13.1]} 37... Rdd2 {[%clk 0:00:05.3]} 38. f5 {[%clk 0:00:13]} 38... exf5
{[%clk 0:00:06.2]} 39. gxf5 {[%clk 0:00:13.2]} 39... Bh5 {[%clk 0:00:06.6]} 40.
Rfe3 {[%clk 0:00:13.1]} 40... Rg2+ {[%clk 0:00:06.6]} 41. Kh1 {[%clk 0:00:13.5]}
41... Rh2+ {[%clk 0:00:06.7]} 42. Kg1 {[%clk 0:00:14.1]} 42... Nd5 {[%clk
0:00:07.3]} 43. Rd3 {[%clk 0:00:12.8]} 43... Rcg2+ {[%clk 0:00:06.3]} 44. Kf1
{[%clk 0:00:12.5]} 44... Rf2+ {[%clk 0:00:06.5]} 45. Kg1 {[%clk 0:00:12.8]}
45... Bf3 {[%clk 0:00:07]} 46. b6 {[%clk 0:00:08.7]} 46... Nf4 {[%clk
0:00:06.6]} 47. Rxf3 {[%clk 0:00:08.4]} 47... Rfg2+ {[%clk 0:00:06.8]} 48. Kf1
{[%clk 0:00:08.5]} 48... Rh1# {[%clk 0:00:07.7]} 0-1

[Event "*** SCC Grand Prix: Titled Tuesday Blitz"]
[Site "Chess.com"]
[Date "2020.06.09"]
[Round "5"]
[White "SketchyMoves"]
[Black "mishanick"]
[Result "0-1"]
[WhiteElo "2651"]
[BlackElo "2940"]
[TimeControl "180+1"]
[EndTime "9:57:08 PDT"]
[Termination "mishanick won by resignation"]

1. e4 {[%clk 0:03:00.9]} 1... c5 {[%clk 0:02:59.9]} 2. Nc3 {[%clk 0:03:00.4]}
2... d6 {[%clk 0:03:00.4]} 3. f4 {[%clk 0:02:59.6]} 3... g6 {[%clk 0:02:59.6]}
4. Nf3 {[%clk 0:02:59.8]} 4... Bg7 {[%clk 0:02:58.5]} 5. Bb5+ {[%clk 0:02:59.2]}
5... Bd7 {[%clk 0:02:57.9]} 6. Bxd7+ {[%clk 0:02:58.5]} 6... Qxd7 {[%clk
0:02:56.4]} 7. d3 {[%clk 0:02:58.3]} 7... Nc6 {[%clk 0:02:56.9]} 8. O-O {[%clk
0:02:58.5]} 8... Nh6 {[%clk 0:02:56.7]} 9. f5 {[%clk 0:02:46.8]} 9... gxf5
{[%clk 0:02:52.6]} 10. Ng5 {[%clk 0:02:37.5]} 10... Nd4 {[%clk 0:02:42.4]} 11.
exf5 {[%clk 0:02:25.1]} 11... Nhxf5 {[%clk 0:02:43.3]} 12. Nce4 {[%clk 0:02:16]}
12... h6 {[%clk 0:02:33.1]} 13. Nh3 {[%clk 0:02:00.2]} 13... O-O-O {[%clk
0:02:04.2]} 14. c3 {[%clk 0:01:59.6]} 14... Nc6 {[%clk 0:02:03.7]} 15. Nf4
{[%clk 0:01:55.4]} 15... Be5 {[%clk 0:01:48.2]} 16. Nh5 {[%clk 0:01:36.9]} 16...
Rdg8 {[%clk 0:01:42.8]} 17. Qe2 {[%clk 0:01:35.8]} 17... Nh4 {[%clk 0:01:27.6]}
18. g3 {[%clk 0:01:31.5]} 18... Qe6 {[%clk 0:01:09.1]} 19. Kh1 {[%clk
0:01:24.2]} 19... f5 {[%clk 0:00:51.6]} 20. gxh4 {[%clk 0:01:04.8]} 20... fxe4
{[%clk 0:00:51.5]} 21. Qxe4 {[%clk 0:01:02.1]} 21... Qh3 {[%clk 0:00:42.8]} 22.
Qf5+ {[%clk 0:00:58.7]} 22... Qxf5 {[%clk 0:00:42.4]} 23. Rxf5 {[%clk
0:00:59.6]} 23... Rg4 {[%clk 0:00:42.7]} 24. Nf4 {[%clk 0:00:51.1]} 24... Rxh4
{[%clk 0:00:29.7]} 25. Be3 {[%clk 0:00:51.2]} 25... Rg8 {[%clk 0:00:27.7]} 26.
Rg1 {[%clk 0:00:48]} 26... Rxg1+ {[%clk 0:00:25.7]} 27. Kxg1 {[%clk 0:00:48.9]}
27... Kd7 {[%clk 0:00:25.1]} 28. h3 {[%clk 0:00:37.1]} 28... Bxf4 {[%clk
0:00:23.9]} 29. Bxf4 {[%clk 0:00:17.7]} 29... Rxh3 {[%clk 0:00:24.2]} 30. Rf7
{[%clk 0:00:14.3]} 30... Rxd3 {[%clk 0:00:23.8]} 31. Bxh6 {[%clk 0:00:14.6]}
31... Rd1+ {[%clk 0:00:23.5]} 32. Kf2 {[%clk 0:00:14.4]} 32... Rb1 {[%clk
0:00:24]} 33. Ke3 {[%clk 0:00:12.1]} 33... Rxb2 {[%clk 0:00:24.3]} 34. a4 {[%clk
0:00:12.2]} 34... Ra2 {[%clk 0:00:24.5]} 35. Rf4 {[%clk 0:00:11.6]} 35... a6
{[%clk 0:00:23.8]} 36. Rh4 {[%clk 0:00:11.6]} 36... b5 {[%clk 0:00:23.7]} 37.
axb5 {[%clk 0:00:11.8]} 37... axb5 {[%clk 0:00:24.6]} 38. Bg5 {[%clk 0:00:12.2]}
38... Rg2 {[%clk 0:00:22.2]} 39. Bf4 {[%clk 0:00:11.7]} 39... e5 {[%clk
0:00:21.8]} 40. Rh7+ {[%clk 0:00:11.2]} 40... Ke6 {[%clk 0:00:21.7]} 41. Rh6+
{[%clk 0:00:09.6]} 41... Kd5 {[%clk 0:00:21.9]} 42. Bh2 {[%clk 0:00:10.2]} 42...
c4 {[%clk 0:00:20]} 43. Rh7 {[%clk 0:00:08.5]} 43... Rc2 {[%clk 0:00:20.2]} 44.
Rh6 {[%clk 0:00:08.1]} 44... Rxc3+ {[%clk 0:00:20.4]} 45. Kd2 {[%clk 0:00:09]}
45... Rd3+ {[%clk 0:00:20.9]} 46. Ke2 {[%clk 0:00:08.6]} 46... Nd4+ {[%clk
0:00:21.8]} 47. Kf2 {[%clk 0:00:08]} 47... b4 {[%clk 0:00:22.7]} 48. Rh8 {[%clk
0:00:07.6]} 48... b3 {[%clk 0:00:23.2]} 49. Rb8 {[%clk 0:00:08.5]} 49... Rd2+
{[%clk 0:00:23.5]} 50. Kg3 {[%clk 0:00:08.9]} 50... c3 {[%clk 0:00:23.8]} 51.
Bg1 {[%clk 0:00:07.8]} 51... c2 {[%clk 0:00:24.2]} 52. Be3 {[%clk 0:00:07.6]}
52... Rd3 {[%clk 0:00:24.2]} 53. Kf2 {[%clk 0:00:07.7]} 53... Rxe3 {[%clk
0:00:25]} 54. Kxe3 {[%clk 0:00:08.6]} 54... c1=Q+ {[%clk 0:00:25]} 0-1

[Event "*** SCC Grand Prix: Titled Tuesday Blitz"]
[Site "Chess.com"]
[Date "2020.06.09"]
[Round "5"]
[White "PattyCastillo"]
[Black "YaWaleriy"]
[Result "1-0"]
[WhiteElo "1916"]
[BlackElo "2211"]
[TimeControl "180+1"]
[EndTime "9:57:08 PDT"]
[Termination "PattyCastillo won by checkmate"]

1. d4 {[%clk 0:02:55.7]} 1... d5 {[%clk 0:02:59.4]} 2. Nf3 {[%clk 0:02:55.2]}
2... Nf6 {[%clk 0:02:57.7]} 3. e3 {[%clk 0:02:54.9]} 3... e6 {[%clk 0:02:57.6]}
4. Bd3 {[%clk 0:02:54]} 4... Bd6 {[%clk 0:02:56.9]} 5. b3 {[%clk 0:02:52.8]}
5... O-O {[%clk 0:02:56.4]} 6. Bb2 {[%clk 0:02:52.9]} 6... b6 {[%clk 0:02:56.9]}
7. O-O {[%clk 0:02:52.5]} 7... Bb7 {[%clk 0:02:57.4]} 8. Nbd2 {[%clk 0:02:52.8]}
8... Nbd7 {[%clk 0:02:56.7]} 9. Qe2 {[%clk 0:02:51.6]} 9... c5 {[%clk
0:02:56.1]} 10. Rac1 {[%clk 0:02:49.7]} 10... Qe7 {[%clk 0:02:55.1]} 11. Ne5
{[%clk 0:02:46.2]} 11... Ne4 {[%clk 0:02:52.4]} 12. Bxe4 {[%clk 0:02:40.6]}
12... dxe4 {[%clk 0:02:52.2]} 13. Ndc4 {[%clk 0:02:39.9]} 13... Bc7 {[%clk
0:02:46.4]} 14. Nxd7 {[%clk 0:02:32.9]} 14... Qxd7 {[%clk 0:02:46.2]} 15. Rcd1
{[%clk 0:02:22.6]} 15... Qe7 {[%clk 0:02:42.9]} 16. Qg4 {[%clk 0:02:07]} 16...
f5 {[%clk 0:02:42]} 17. Qh5 {[%clk 0:02:02.4]} 17... Ba6 {[%clk 0:02:40.3]} 18.
Rfe1 {[%clk 0:01:58.1]} 18... Bxc4 {[%clk 0:02:35.6]} 19. bxc4 {[%clk 0:01:59]}
19... Rf6 {[%clk 0:02:34.9]} 20. h3 {[%clk 0:01:52.1]} 20... Rg6 {[%clk
0:02:26.3]} 21. d5 {[%clk 0:01:40.3]} 21... Rg5 {[%clk 0:02:23.7]} 22. Qe2
{[%clk 0:01:26.3]} 22... exd5 {[%clk 0:02:07.4]} 23. cxd5 {[%clk 0:01:25]} 23...
Qd6 {[%clk 0:02:04.5]} 24. g3 {[%clk 0:01:10.3]} 24... Re8 {[%clk 0:01:58.4]}
25. c4 {[%clk 0:00:53]} 25... h5 {[%clk 0:01:51.2]} 26. h4 {[%clk 0:00:51.6]}
26... Rg4 {[%clk 0:01:50.8]} 27. Kf1 {[%clk 0:00:25.2]} 27... Kh7 {[%clk
0:01:45.8]} 28. Qd2 {[%clk 0:00:20.6]} 28... g5 {[%clk 0:01:28.9]} 29. hxg5
{[%clk 0:00:18.1]} 29... Rxg5 {[%clk 0:01:25.7]} 30. Ke2 {[%clk 0:00:18.2]}
30... Reg8 {[%clk 0:01:24.4]} 31. Qc3 {[%clk 0:00:17.9]} 31... Kg6 {[%clk
0:01:23.2]} 32. Rh1 {[%clk 0:00:17.5]} 32... Rg4 {[%clk 0:01:21.7]} 33. Rdg1
{[%clk 0:00:17.3]} 33... Rg5 {[%clk 0:01:07.3]} 34. Rg2 {[%clk 0:00:17]} 34...
Kf7 {[%clk 0:00:40.2]} 35. Rgh2 {[%clk 0:00:16]} 35... Qg6 {[%clk 0:00:39.6]}
36. Ke1 {[%clk 0:00:13.2]} 36... Bd6 {[%clk 0:00:38.2]} 37. Rh4 {[%clk
0:00:12.9]} 37... Re8 {[%clk 0:00:37.6]} 38. Kd2 {[%clk 0:00:12]} 38... Be5
{[%clk 0:00:36.5]} 39. Qb3 {[%clk 0:00:10.8]} 39... Bxb2 {[%clk 0:00:34.9]} 40.
Qxb2 {[%clk 0:00:11.4]} 40... Re7 {[%clk 0:00:33.6]} 41. Qc3 {[%clk 0:00:10.5]}
41... Ke8 {[%clk 0:00:31.8]} 42. Ke2 {[%clk 0:00:10.5]} 42... Kd7 {[%clk
0:00:30]} 43. Qd2 {[%clk 0:00:08.1]} 43... Kd6 {[%clk 0:00:29.2]} 44. Qb2 {[%clk
0:00:07.8]} 44... Rf7 {[%clk 0:00:26.6]} 45. Qb5 {[%clk 0:00:07.7]} 45... Rc7
{[%clk 0:00:24.5]} 46. Qa6 {[%clk 0:00:07.4]} 46... Qf6 {[%clk 0:00:22.8]} 47.
Rxh5 {[%clk 0:00:06.1]} 47... Qb2+ {[%clk 0:00:22]} 48. Kf1 {[%clk 0:00:06.4]}
48... Qc1+ {[%clk 0:00:20]} 49. Kg2 {[%clk 0:00:06.3]} 49... Rxh5 {[%clk
0:00:17.4]} 50. Rxh5 {[%clk 0:00:07.2]} 50... Qd1 {[%clk 0:00:17.5]} 51. Rh6+
{[%clk 0:00:07]} 51... Ke5 {[%clk 0:00:16.9]} 52. Re6# {[%clk 0:00:06.5]} 1-0

[Event "*** SCC Grand Prix: Titled Tuesday Blitz"]
[Site "Chess.com"]
[Date "2020.06.09"]
[Round "5"]
[White "Colchonero64"]
[Black "Alexander_Moskalenko"]
[Result "1/2-1/2"]
[WhiteElo "2995"]
[BlackElo "2822"]
[TimeControl "180+1"]
[EndTime "9:57:10 PDT"]
[Termination "Game drawn by repetition"]

1. d4 {[%clk 0:03:00.9]} 1... e6 {[%clk 0:03:00.1]} 2. Nf3 {[%clk 0:02:59.2]}
2... d5 {[%clk 0:02:58]} 3. Bf4 {[%clk 0:02:58.9]} 3... Bd6 {[%clk 0:02:56.9]}
4. Bg3 {[%clk 0:02:58.9]} 4... Ne7 {[%clk 0:02:56.8]} 5. e3 {[%clk 0:02:58.6]}
5... Nf5 {[%clk 0:02:57.1]} 6. Bxd6 {[%clk 0:02:52.6]} 6... Nxd6 {[%clk
0:02:53.7]} 7. Nbd2 {[%clk 0:02:52.3]} 7... Nd7 {[%clk 0:02:50.8]} 8. c3 {[%clk
0:02:48.2]} 8... Qe7 {[%clk 0:02:49.9]} 9. Ne5 {[%clk 0:02:46.7]} 9... O-O
{[%clk 0:02:46.6]} 10. Bd3 {[%clk 0:02:45.6]} 10... f6 {[%clk 0:02:46.4]} 11.
Nxd7 {[%clk 0:02:15.5]} 11... Bxd7 {[%clk 0:02:47.3]} 12. O-O {[%clk 0:02:15.3]}
12... e5 {[%clk 0:02:25]} 13. Bc2 {[%clk 0:02:01]} 13... c6 {[%clk 0:02:17.1]}
14. a4 {[%clk 0:01:57.3]} 14... a5 {[%clk 0:02:01.8]} 15. Re1 {[%clk 0:01:44.5]}
15... e4 {[%clk 0:01:55.5]} 16. f3 {[%clk 0:01:39]} 16... f5 {[%clk 0:01:55.5]}
17. Bb3 {[%clk 0:01:38.4]} 17... Be6 {[%clk 0:01:51.2]} 18. Qe2 {[%clk
0:01:37.9]} 18... exf3 {[%clk 0:01:43.7]} 19. Nxf3 {[%clk 0:01:36.1]} 19... Rae8
{[%clk 0:01:44.3]} 20. Ne5 {[%clk 0:01:33.5]} 20... Nf7 {[%clk 0:01:42.2]} 21.
Nd3 {[%clk 0:01:33.5]} 21... Nd6 {[%clk 0:01:32.9]} 22. Ne5 {[%clk 0:01:31.3]}
22... Nf7 {[%clk 0:01:17]} 23. Nd3 {[%clk 0:01:29.5]} 23... Nd6 {[%clk
0:01:16.9]} 24. Bc2 {[%clk 0:01:23.1]} 24... Rf6 {[%clk 0:01:12.2]} 25. b4
{[%clk 0:01:22.2]} 25... Ne4 {[%clk 0:01:08.9]} 26. bxa5 {[%clk 0:01:08.9]}
26... Nxc3 {[%clk 0:01:08.9]} 27. Qf3 {[%clk 0:01:05.4]} 27... Qc7 {[%clk
0:00:58]} 28. Nc5 {[%clk 0:01:03.3]} 28... Bc8 {[%clk 0:00:56.7]} 29. Nb3 {[%clk
0:00:52.9]} 29... Ref8 {[%clk 0:00:49.5]} 30. Qf4 {[%clk 0:00:48.8]} 30... Qe7
{[%clk 0:00:42.7]} 31. Nc5 {[%clk 0:00:47.8]} 31... Qd8 {[%clk 0:00:39.8]} 32.
Nb3 {[%clk 0:00:46.1]} 32... h6 {[%clk 0:00:34.6]} 33. Bd3 {[%clk 0:00:44.8]}
33... R6f7 {[%clk 0:00:33.3]} 34. Qf2 {[%clk 0:00:43.3]} 34... Ne4 {[%clk
0:00:33.4]} 35. Bxe4 {[%clk 0:00:41.4]} 35... fxe4 {[%clk 0:00:33.3]} 36. Qg3
{[%clk 0:00:40.8]} 36... Qe7 {[%clk 0:00:30.7]} 37. Nc5 {[%clk 0:00:37]} 37...
Qd8 {[%clk 0:00:31.1]} 38. Nb3 {[%clk 0:00:35.4]} 38... Rf5 {[%clk 0:00:29.8]}
39. Rf1 {[%clk 0:00:32]} 39... Rxf1+ {[%clk 0:00:22.1]} 40. Rxf1 {[%clk
0:00:31.8]} 40... Rxf1+ {[%clk 0:00:22.2]} 41. Kxf1 {[%clk 0:00:32.3]} 41...
Qf8+ {[%clk 0:00:23.1]} 42. Qf4 {[%clk 0:00:28.1]} 42... Qb4 {[%clk 0:00:21.4]}
43. Nc5 {[%clk 0:00:23.7]} 43... Qxa5 {[%clk 0:00:17.2]} 44. Qb8 {[%clk
0:00:23.5]} 44... Qd8 {[%clk 0:00:17]} 45. Nxb7 {[%clk 0:00:21.4]} 45... Qf8+
{[%clk 0:00:17]} 46. Kg1 {[%clk 0:00:21]} 46... Bxb7 {[%clk 0:00:15.8]} 47. Qxb7
{[%clk 0:00:21.2]} 47... Qa3 {[%clk 0:00:16.7]} 48. Qc8+ {[%clk 0:00:18]} 48...
Kh7 {[%clk 0:00:13.8]} 49. Qf5+ {[%clk 0:00:17.8]} 49... Kg8 {[%clk 0:00:13.6]}
50. Qe6+ {[%clk 0:00:17.7]} 50... Kh8 {[%clk 0:00:13.3]} 51. Qc8+ {[%clk
0:00:16.4]} 51... Kh7 {[%clk 0:00:13.7]} 52. Qf5+ {[%clk 0:00:16.4]} 52... Kh8
{[%clk 0:00:14.3]} 53. Qc8+ {[%clk 0:00:14.9]} 53... Kh7 {[%clk 0:00:14.6]}
1/2-1/2

[Event "*** SCC Grand Prix: Titled Tuesday Blitz"]
[Site "Chess.com"]
[Date "2020.06.09"]
[Round "5"]
[White "Training_Day"]
[Black "GelmanAlexander"]
[Result "1-0"]
[WhiteElo "2318"]
[BlackElo "2534"]
[TimeControl "180+1"]
[EndTime "9:57:11 PDT"]
[Termination "Training_Day won by resignation"]

1. e4 {[%clk 0:03:00.9]} 1... c5 {[%clk 0:02:59.8]} 2. c3 {[%clk 0:03:00.5]}
2... e6 {[%clk 0:02:59.9]} 3. d4 {[%clk 0:03:00.5]} 3... d5 {[%clk 0:03:00.5]}
4. e5 {[%clk 0:03:01.1]} 4... Nc6 {[%clk 0:03:00.2]} 5. Nf3 {[%clk 0:03:01.7]}
5... Bd7 {[%clk 0:03:00.4]} 6. Be2 {[%clk 0:03:01.5]} 6... f6 {[%clk 0:03:00.2]}
7. O-O {[%clk 0:02:59.4]} 7... fxe5 {[%clk 0:02:59.5]} 8. Nxe5 {[%clk
0:02:55.1]} 8... Nxe5 {[%clk 0:02:56.5]} 9. dxe5 {[%clk 0:02:56]} 9... Qc7
{[%clk 0:02:53.7]} 10. Re1 {[%clk 0:02:55.2]} 10... O-O-O {[%clk 0:02:51.1]} 11.
c4 {[%clk 0:02:55.5]} 11... d4 {[%clk 0:02:05]} 12. b4 {[%clk 0:02:54.8]} 12...
Nh6 {[%clk 0:02:02.8]} 13. bxc5 {[%clk 0:02:39.5]} 13... Bxc5 {[%clk 0:02:02.3]}
14. Ba3 {[%clk 0:02:39.4]} 14... Rhf8 {[%clk 0:01:48.2]} 15. Bf3 {[%clk
0:02:32.6]} 15... Nf5 {[%clk 0:01:38.5]} 16. Qb3 {[%clk 0:02:22.8]} 16... Nh4
{[%clk 0:00:55.1]} 17. Bxb7+ {[%clk 0:02:09.1]} 17... Qxb7 {[%clk 0:00:54.8]}
18. Qxb7+ {[%clk 0:02:09.1]} 18... Kxb7 {[%clk 0:00:55.4]} 19. Bxc5 {[%clk
0:02:09.6]} 19... Rf7 {[%clk 0:00:36.2]} 20. Nd2 {[%clk 0:01:57.1]} 20... Bc6
{[%clk 0:00:36.6]} 21. Rab1+ {[%clk 0:01:49.8]} 21... Ka8 {[%clk 0:00:34.5]} 22.
f3 {[%clk 0:01:31.9]} 22... d3 {[%clk 0:00:31.8]} 23. Rb3 {[%clk 0:01:27.5]}
23... g5 {[%clk 0:00:31.2]} 24. Bd6 {[%clk 0:01:09.2]} 24... g4 {[%clk
0:00:31.1]} 25. Reb1 {[%clk 0:00:47.4]} 25... Rb7 {[%clk 0:00:25.1]} 26. Rxb7
{[%clk 0:00:32.1]} 26... Bxb7 {[%clk 0:00:26]} 27. fxg4 {[%clk 0:00:32.2]} 27...
Nxg2 {[%clk 0:00:25.7]} 28. Rxb7 {[%clk 0:00:31.3]} 28... Kxb7 {[%clk
0:00:22.8]} 29. Kxg2 {[%clk 0:00:31.6]} 29... Kc6 {[%clk 0:00:21.2]} 30. Kf3
{[%clk 0:00:31]} 30... Rd7 {[%clk 0:00:19.3]} 31. Ke3 {[%clk 0:00:29.6]} 31...
Rb7 {[%clk 0:00:20]} 32. Kxd3 {[%clk 0:00:29.4]} 32... Rb2 {[%clk 0:00:20.9]}
33. a3 {[%clk 0:00:28.6]} 33... a5 {[%clk 0:00:21.2]} 34. h4 {[%clk 0:00:28.3]}
34... Ra2 {[%clk 0:00:18.9]} 35. Nf3 {[%clk 0:00:19.4]} 35... Rf2 {[%clk
0:00:17.8]} 36. Ng5 {[%clk 0:00:19.5]} 36... Rf4 {[%clk 0:00:16.4]} 37. Nxh7
{[%clk 0:00:15.9]} 37... Rxg4 {[%clk 0:00:16.7]} 38. h5 {[%clk 0:00:16]} 38...
Rg3+ {[%clk 0:00:16.4]} 39. Kd4 {[%clk 0:00:15.7]} 39... Rg4+ {[%clk 0:00:16.4]}
40. Kd3 {[%clk 0:00:15.8]} 40... Rg3+ {[%clk 0:00:16.7]} 41. Ke2 {[%clk
0:00:16]} 41... Rc3 {[%clk 0:00:13.6]} 42. Nf6 {[%clk 0:00:14.6]} 42... Rxc4
{[%clk 0:00:13.9]} 43. h6 {[%clk 0:00:15]} 43... Rh4 {[%clk 0:00:14.1]} 44. h7
{[%clk 0:00:15.3]} 44... Kb5 {[%clk 0:00:14.6]} 45. Bf8 {[%clk 0:00:14.2]} 45...
Ka4 {[%clk 0:00:14.9]} 46. Bg7 {[%clk 0:00:14.7]} 46... Rh2+ {[%clk 0:00:14.2]}
47. Kd3 {[%clk 0:00:14.6]} 47... Kxa3 {[%clk 0:00:13.4]} 48. h8=Q {[%clk
0:00:14.5]} 48... Rxh8 {[%clk 0:00:13.5]} 49. Bxh8 {[%clk 0:00:15.4]} 49... a4
{[%clk 0:00:14.1]} 50. Bg7 {[%clk 0:00:12.5]} 50... Kb3 {[%clk 0:00:13.4]} 51.
Bf8 {[%clk 0:00:12.9]} 51... a3 {[%clk 0:00:14]} 52. Bxa3 {[%clk 0:00:13.4]}
52... Kxa3 {[%clk 0:00:14.6]} 53. Kc4 {[%clk 0:00:13.8]} 53... Ka4 {[%clk
0:00:14.8]} 54. Kc5 {[%clk 0:00:14.4]} 1-0

[Event "*** SCC Grand Prix: Titled Tuesday Blitz"]
[Site "Chess.com"]
[Date "2020.06.09"]
[Round "5"]
[White "shineatchess"]
[Black "dolynachess"]
[Result "1-0"]
[WhiteElo "2233"]
[BlackElo "2425"]
[TimeControl "180+1"]
[EndTime "9:57:11 PDT"]
[Termination "shineatchess won by resignation"]

1. e4 {[%clk 0:02:54.6]} 1... c5 {[%clk 0:02:59.6]} 2. Nf3 {[%clk 0:02:53.6]}
2... d6 {[%clk 0:03:00]} 3. Bb5+ {[%clk 0:02:52.2]} 3... Bd7 {[%clk 0:02:59.5]}
4. Bxd7+ {[%clk 0:02:50.6]} 4... Qxd7 {[%clk 0:03:00.4]} 5. c4 {[%clk
0:02:49.7]} 5... g6 {[%clk 0:03:00.2]} 6. Nc3 {[%clk 0:02:40.8]} 6... Bg7 {[%clk
0:03:00.5]} 7. d4 {[%clk 0:02:35.1]} 7... cxd4 {[%clk 0:02:58.8]} 8. Nxd4 {[%clk
0:02:35.1]} 8... Nc6 {[%clk 0:02:59.7]} 9. Nde2 {[%clk 0:02:30.9]} 9... Nf6
{[%clk 0:02:58.2]} 10. O-O {[%clk 0:02:28.2]} 10... O-O {[%clk 0:02:58.2]} 11.
f3 {[%clk 0:02:23.2]} 11... Rfc8 {[%clk 0:02:58.1]} 12. b3 {[%clk 0:02:20.7]}
12... a6 {[%clk 0:02:57.7]} 13. Be3 {[%clk 0:02:14.9]} 13... Rab8 {[%clk
0:02:52.5]} 14. a4 {[%clk 0:02:05]} 14... Qd8 {[%clk 0:02:47.8]} 15. Rc1 {[%clk
0:01:57.9]} 15... Qa5 {[%clk 0:02:42.1]} 16. Qd2 {[%clk 0:01:51.4]} 16... Nd7
{[%clk 0:02:39.2]} 17. f4 {[%clk 0:01:13.4]} 17... Nc5 {[%clk 0:02:34.3]} 18.
Qc2 {[%clk 0:01:03.4]} 18... Nb4 {[%clk 0:02:18]} 19. Qb1 {[%clk 0:01:00.6]}
19... Nbd3 {[%clk 0:02:06]} 20. Rc2 {[%clk 0:00:58.8]} 20... b5 {[%clk 0:01:57]}
21. axb5 {[%clk 0:00:36.4]} 21... axb5 {[%clk 0:01:57.9]} 22. Nxb5 {[%clk
0:00:29.7]} 22... Nxe4 {[%clk 0:01:53.3]} 23. Ra2 {[%clk 0:00:29.5]} 23... Qb4
{[%clk 0:01:14.6]} 24. Qxd3 {[%clk 0:00:29.2]} 24... Nc5 {[%clk 0:01:15.1]} 25.
Bxc5 {[%clk 0:00:26.4]} 25... Qxc5+ {[%clk 0:01:15.9]} 26. Kh1 {[%clk
0:00:26.5]} 26... d5 {[%clk 0:01:16.8]} 27. Rc2 {[%clk 0:00:17.2]} 27... dxc4
{[%clk 0:01:11.5]} 28. Rxc4 {[%clk 0:00:16.4]} 28... Qb6 {[%clk 0:01:05.2]} 29.
Rxc8+ {[%clk 0:00:15.8]} 29... Rxc8 {[%clk 0:01:06.1]} 30. Rd1 {[%clk
0:00:14.1]} 30... Rb8 {[%clk 0:01:02.6]} 31. Nbd4 {[%clk 0:00:12.9]} 31... Rd8
{[%clk 0:01:01.5]} 32. Qc4 {[%clk 0:00:10.8]} 32... h5 {[%clk 0:00:59.8]} 33. b4
{[%clk 0:00:10.2]} 33... h4 {[%clk 0:00:59.2]} 34. b5 {[%clk 0:00:10.3]} 34...
h3 {[%clk 0:00:57.7]} 35. Rd3 {[%clk 0:00:07.6]} 35... hxg2+ {[%clk 0:00:56.8]}
36. Kxg2 {[%clk 0:00:07.8]} 36... e5 {[%clk 0:00:45.3]} 37. Nf3 {[%clk
0:00:06.7]} 37... Rxd3 {[%clk 0:00:35.3]} 38. Qxd3 {[%clk 0:00:06.7]} 38... exf4
{[%clk 0:00:34]} 39. Nxf4 {[%clk 0:00:06.4]} 39... Qc5 {[%clk 0:00:26.3]} 40.
Nd5 {[%clk 0:00:05.9]} 40... Bf8 {[%clk 0:00:19.2]} 41. b6 {[%clk 0:00:06]}
41... Bd6 {[%clk 0:00:19.4]} 42. Nf6+ {[%clk 0:00:06]} 42... Kf8 {[%clk
0:00:17.6]} 43. Nd7+ {[%clk 0:00:05.7]} 43... Kg7 {[%clk 0:00:16.8]} 44. Nxc5
{[%clk 0:00:06.6]} 44... Bxc5 {[%clk 0:00:17.6]} 45. Qc3+ {[%clk 0:00:06.8]} 1-0